bitfinex/quotes_BTCUSD_20260308
["timestamp","ask_amount","ask_price","bid_price","bid_amount"]
[1773003496075,0.00144,67218.0,67217.0,0.20926491]
[1773003496201,0.00144,67218.0,67217.0,0.27142743]
[1773003496398,0.00148,67218.0,67217.0,0.27142743]
[1773003496805,0.07438151,67221.0,67217.0,0.27142743]
[1773003496998,0.00148,67220.0,67217.0,0.271259]
[1773003497240,0.07438151,67223.0,67217.0,0.271259]
[1773003497241,0.00148,67219.0,67217.0,0.271259]
[1773003497673,0.07438151,67223.0,67217.0,0.271459]
[1773003497876,0.00148,67218.0,67217.0,0.271459]
[1773003498930,0.00148,67218.0,67217.0,0.20912803]
[1773003499451,0.00148,67218.0,67217.0,0.0002]
[1773003502976,0.07459819,67225.0,67217.0,0.0002]
[1773003503128,0.00148,67224.0,67220.0,0.20923338]
[1773003503326,0.00148,67224.0,67222.0,0.20923338]
[1773003503530,0.00022001,67225.0,67221.0,0.06209397]
[1773003503751,0.00148,67224.0,67218.0,0.28361778]
[1773003505244,0.07585833,67224.0,67218.0,0.28361778]
[1773003505483,0.00122001,67225.0,67220.0,0.06208806]
[1773003505682,0.00122001,67225.0,67221.0,0.27132144]
[1773003505683,0.00148,67224.0,67221.0,0.27132144]
[1773003506051,0.00148,67224.0,67221.0,0.20923338]
[1773003507659,0.00148,67224.0,67221.0,0.27129084]
[1773003507864,0.00148,67224.0,67222.0,0.20923338]
[1773003508282,0.00148,67224.0,67221.0,0.06205746]
[1773003508664,0.00148,67224.0,67220.0,0.07438191]
[1773003509096,0.00148,67224.0,67219.0,0.34567457]
[1773003509718,0.00148,67224.0,67219.0,0.27129084]
[1773003510565,0.00170001,67224.0,67219.0,0.34567392]
[1773003510891,0.00170001,67224.0,67219.0,0.34567439]
[1773003512018,0.00170001,67224.0,67219.0,0.27129084]
[1773003513010,0.00170001,67224.0,67219.0,0.34567407]
[1773003515020,0.00170001,67224.0,67219.0,0.27129084]
[1773003515235,0.00170001,67224.0,67219.0,0.28129084]
[1773003515449,0.00170001,67224.0,67219.0,0.35567426]
[1773003516228,0.00170001,67224.0,67219.0,0.35563426]
[1773003521385,0.00148,67223.0,67221.0,0.20958706]
[1773003521571,0.07437377,67228.0,67219.0,0.01]
[1773003521728,0.07437377,67228.0,67214.0,0.00555]
[1773003521729,0.00148,67222.0,67214.0,0.00555]
[1773003522167,0.00148,67222.0,67214.0,0.07993896]
[1773003522671,0.00148,67221.0,67214.0,0.00555]
[1773003523230,0.07437377,67228.0,67214.0,0.00555]
[1773003523430,0.00148,67227.0,67214.0,0.00555]
[1773003525382,0.07437598,67226.0,67214.0,0.00555]
[1773003525564,0.03058647,67225.0,67219.0,0.0002]
[1773003525779,0.00022001,67224.0,67219.0,0.0002]
[1773003525939,0.03080648,67224.0,67219.0,0.0002]
[1773003526641,0.03058647,67223.0,67219.0,0.0002]
[1773003527275,0.00148,67222.0,67219.0,0.0002]
[1773003527684,0.07438151,67221.0,67219.0,0.0002]
[1773003529252,0.07538151,67221.0,67219.0,0.0004294]
[1773003530607,0.07538151,67221.0,67217.0,0.0001421]
[1773003530811,0.10596798,67221.0,67214.0,0.00555]
[1773003531446,0.10496798,67221.0,67214.0,0.00555]
[1773003532429,0.10496798,67221.0,67219.0,0.0002]
[1773003533497,0.07438151,67221.0,67219.0,0.0002]
[1773003533808,0.07438151,67221.0,67203.0,0.0002]
[1773003534021,0.07438151,67221.0,67184.0,0.00023]
[1773003534022,0.03058647,67211.0,67188.0,0.21417094]
[1773003534204,0.05902863,67200.0,67189.0,0.0312592]
[1773003534407,0.00148,67199.0,67190.0,0.21417094]
[1773003534609,0.00148,67199.0,67192.0,0.21417094]
[1773003534817,0.07588633,67199.0,67192.0,0.21417094]
[1773003535344,0.07588633,67199.0,67192.0,0.21456708]
[1773003535885,0.00148,67198.0,67192.0,0.21456708]
[1773003536087,0.07440254,67202.0,67194.0,0.0312592]
[1773003536290,0.00148,67197.0,67195.0,0.24513414]
[1773003538128,0.00148,67197.0,67196.0,0.0312592]
[1773003538330,0.00148,67197.0,67196.0,0.24513414]
[1773003540344,0.00148,67197.0,67195.0,0.0102]
[1773003540523,0.00148,67197.0,67196.0,0.21387494]
[1773003541845,0.00148,67197.0,67196.0,0.19092783]
[1773003542449,0.00022001,67221.0,67196.0,0.0312592]
[1773003542648,0.00148,67220.0,67200.0,0.0312592]
[1773003542884,0.00148,67220.0,67203.0,0.2123628]
[1773003543102,0.06050863,67220.0,67206.0,0.0312592]
[1773003543302,0.06050863,67220.0,67209.0,0.2123628]
[1773003543570,0.00148,67219.0,67209.0,0.2123628]
[1773003543772,0.00148,67219.0,67209.0,0.243622]
[1773003544069,0.05902863,67220.0,67209.0,0.243622]
[1773003544312,0.07460153,67221.0,67212.0,0.0312592]
[1773003544313,0.00148,67218.0,67212.0,0.0312592]
[1773003544609,0.00148,67219.0,67213.0,0.243622]
[1773003544809,0.07460153,67221.0,67213.0,0.243622]
[1773003545105,0.00148,67218.0,67215.0,0.2123628]
[1773003545404,0.07460153,67221.0,67215.0,0.2123628]
[1773003545405,0.00148,67217.0,67215.0,0.2123628]
[1773003545798,0.07460153,67221.0,67215.0,0.2123628]
[1773003546271,0.00148,67220.0,67215.0,0.24314777]
[1773003546478,0.07586367,67220.0,67215.0,0.24314777]
[1773003546900,0.07586367,67220.0,67215.0,0.2123628]
[1773003547113,0.07438367,67220.0,67217.0,0.21315533]
[1773003547419,0.00148,67219.0,67217.0,0.21315533]
[1773003547576,0.07586427,67219.0,67217.0,0.21315533]
[1773003547977,0.00148,67218.0,67217.0,0.21315533]
[1773003549112,0.07438367,67220.0,67217.0,0.22315533]
[1773003549113,0.00148,67220.0,67217.0,0.22315533]
[1773003549320,0.07438151,67223.0,67219.0,0.24430434]
[1773003549484,0.00148,67222.0,67219.0,0.24430434]
[1773003549690,0.00148,67221.0,67219.0,0.24430434]
[1773003550080,0.07438151,67223.0,67219.0,0.24430434]
[1773003550283,0.00148,67222.0,67219.0,0.24430434]
[1773003550708,0.07482361,67224.0,67219.0,0.24430434]
[1773003550946,0.00148,67223.0,67219.0,0.24430434]
[1773003551450,0.00148,67222.0,67220.0,0.03114901]
[1773003551780,0.00148,67222.0,67219.0,0.21315533]
[1773003551915,0.00148,67222.0,67221.0,0.24430434]
[1773003552117,0.001,67223.0,67222.0,0.03114901]
[1773003552311,0.00011886,67223.0,67222.0,0.24430434]
[1773003552848,0.00148,67229.0,67222.0,0.21315533]
[1773003553029,0.00148,67229.0,67224.0,0.21315533]
[1773003553230,0.00148,67229.0,67218.0,0.07438402]
[1773003553231,0.00045001,67232.0,67228.0,0.21315533]
[1773003553448,0.00148,67230.0,67228.0,0.21315533]
[1773003553832,0.00045001,67232.0,67228.0,0.21315533]
[1773003554149,0.00148,67230.0,67228.0,0.21315533]
[1773003554313,0.00045001,67232.0,67228.0,0.21315533]
[1773003554506,0.00148,67230.0,67228.0,0.21315533]
[1773003554717,0.00148,67230.0,67225.0,0.03114901]
[1773003554917,0.00022001,67229.0,67227.0,0.03114901]
[1773003555117,0.07482036,67232.0,67228.0,0.21315533]
[1773003555390,0.07437144,67231.0,67212.0,0.0743908]
[1773003555625,0.05902863,67223.0,67209.0,0.24450434]
[1773003555810,0.05902863,67220.0,67209.0,0.00031886]
[1773003556018,0.03136153,67219.0,67209.0,0.00031886]
[1773003557372,0.07438483,67218.0,67209.0,0.00031886]
[1773003559564,0.02988153,67217.0,67209.0,0.00031886]
[1773003560808,0.02988153,67217.0,67202.0,0.0002]
[1773003560981,0.05902863,67212.0,67202.0,0.0002]
[1773003561180,0.00148,67211.0,67202.0,0.0002]
[1773003561385,0.07439369,67210.0,67202.0,0.21335533]
[1773003563023,0.00148,67214.0,67202.0,0.07460147]
[1773003563202,0.00148,67214.0,67211.0,0.03114901]
[1773003563525,0.00148,67214.0,67212.0,0.24430434]
[1773003564122,0.00148,67214.0,67212.0,0.21315533]
[1773003564448,0.07586939,67214.0,67212.0,0.21315533]
[1773003564581,0.07586939,67214.0,67210.0,0.21315533]
[1773003565183,0.07586939,67214.0,67210.0,0.24430434]
[1773003566232,0.07586939,67214.0,67210.0,0.21315533]
[1773003566434,0.07586939,67214.0,67210.0,0.24430434]
[1773003568635,0.07586939,67214.0,67210.0,0.21315533]
[1773003571365,0.07586939,67214.0,67209.0,0.0002]
[1773003571508,0.07586939,67214.0,67209.0,0.03134901]
[1773003571747,0.07586939,67214.0,67209.0,0.24450434]
[1773003572864,0.07586939,67214.0,67210.0,0.03114901]
[1773003573065,0.07586939,67214.0,67200.0,0.04048988]
[1773003573271,0.07586939,67214.0,67203.0,0.21783278]
[1773003573468,0.00148,67214.0,67205.0,0.21783278]
[1773003574964,0.00148,67214.0,67200.0,0.04060889]
[1773003574965,0.07459711,67225.0,67207.0,0.21783278]
[1773003575160,0.07607711,67225.0,67209.0,0.21783278]
[1773003576131,0.07607711,67225.0,67210.0,0.00072857]
[1773003576287,0.07607711,67225.0,67212.0,0.00072857]
[1773003576488,0.07607711,67225.0,67213.0,0.21783278]
[1773003577093,0.00022001,67221.0,67213.0,0.21783278]
[1773003577497,0.07460162,67221.0,67212.0,0.00148]
[1773003578294,0.07460162,67221.0,67212.0,0.21931278]
[1773003578895,0.00022001,67221.0,67212.0,0.21931278]
[1773003579683,0.07460172,67221.0,67212.0,0.22931278]
[1773003579879,0.00022001,67221.0,67212.0,0.22931278]
[1773003580619,0.07460171,67221.0,67212.0,0.22931278]
[1773003580777,0.00022001,67221.0,67212.0,0.22931278]
[1773003581709,0.00022001,67221.0,67212.0,0.22783278]
[1773003583386,0.00022001,67221.0,67212.0,0.22779278]
[1773003592064,0.00022001,67225.0,67214.0,0.21783278]
[1773003592243,0.00148,67224.0,67214.0,0.21783278]
[1773003593802,0.00148,67224.0,67214.0,0.29222168]
[1773003597099,0.00170001,67224.0,67214.0,0.29222168]
[1773003599807,0.00170001,67224.0,67213.0,0.07439037]
[1773003600013,0.08626256,67228.0,67213.0,0.07439037]
[1773003600215,0.03217698,67234.0,67214.0,0.21783278]
[1773003600389,0.00022001,67236.0,67214.0,0.21783278]
[1773003600589,0.00170001,67235.0,67214.0,0.21783278]
[1773003600828,0.00022001,67235.0,67214.0,0.21783278]
[1773003601031,0.0001576,67237.0,67216.0,0.21783278]
[1773003601268,0.13017491,67246.0,67220.0,0.21783278]
[1773003601446,0.03213647,67251.0,67221.0,0.21783278]
[1773003601618,0.03213647,67249.0,67224.0,0.00019931]
[1773003601830,0.07435165,67248.0,67228.0,0.07437377]
[1773003602019,0.03213647,67247.0,67229.0,0.21783278]
[1773003602604,0.03225546,67247.0,67229.0,0.21783278]
[1773003602806,0.03213647,67246.0,67230.0,0.00148]
[1773003603296,0.21403617,67246.0,67231.0,0.00148]
[1773003603497,0.00011899,67247.0,67231.0,0.00148]
[1773003603498,0.03213647,67245.0,67231.0,0.00148]
[1773003603654,0.00148,67244.0,67228.0,0.28605822]
[1773003603838,0.03258826,67243.0,67231.0,0.00148]
[1773003604044,0.07435771,67243.0,67232.0,0.07436934]
[1773003604275,0.03258826,67242.0,67232.0,0.07436934]
[1773003604488,0.00022001,67235.0,67232.0,0.07436934]
[1773003605308,0.00022001,67235.0,67231.0,0.00148]
[1773003607369,0.00022001,67235.0,67232.0,0.07436934]
[1773003612362,0.00022001,67235.0,67231.0,0.00148]
[1773003612582,0.03264572,67235.0,67230.0,0.00148]
[1773003612893,0.03264572,67235.0,67224.0,0.07437773]
[1773003613079,0.03264572,67235.0,67228.0,0.00148]
[1773003613427,0.03264572,67235.0,67227.0,0.00148]
[1773003613742,0.00022001,67235.0,67228.0,0.07437377]
[1773003615612,0.00022001,67235.0,67227.0,0.00148]
[1773003617640,0.00022001,67235.0,67228.0,0.07437377]
[1773003618374,0.00022001,67235.0,67227.0,0.07605479]
[1773003619756,0.00022001,67235.0,67227.0,0.0002]
[1773003619957,0.00022001,67235.0,67227.0,0.00168]
[1773003620559,0.00022001,67235.0,67227.0,0.0002]
[1773003620762,0.03247355,67235.0,67227.0,0.00168]
[1773003621699,0.00555,67241.0,67228.0,0.20366916]
[1773003621902,0.07457072,67249.0,67230.0,0.20366916]
[1773003621903,0.07447246,67247.0,67230.0,0.20366916]
[1773003622112,0.00148,67246.0,67230.0,0.20366916]
[1773003622314,0.00159899,67247.0,67230.0,0.20366916]
[1773003622669,0.00011899,67247.0,67230.0,0.20366916]
[1773003622872,0.00159899,67247.0,67230.0,0.20366916]
[1773003623271,0.07595243,67247.0,67230.0,0.20366916]
[1773003624123,0.20371103,67238.0,67227.0,0.00016]
[1773003624332,0.03364819,67237.0,67227.0,0.00016]
[1773003624710,0.20371103,67236.0,67222.0,0.07456333]
[1773003624915,0.00148,67237.0,67222.0,0.000183]
[1773003624916,0.03216819,67233.0,67222.0,0.000183]
[1773003625113,0.03216819,67232.0,67222.0,0.000183]
[1773003625465,0.03216819,67230.0,67222.0,0.07456314]
[1773003625628,0.03364819,67230.0,67222.0,0.07456314]
[1773003625828,0.03364819,67230.0,67222.0,0.06956314]
[1773003626219,0.03364819,67230.0,67223.0,0.0002]
[1773003626635,0.00148,67230.0,67223.0,0.0002]
[1773003626843,0.0336155,67230.0,67223.0,0.0002]
[1773003629468,0.0336155,67230.0,67224.0,0.00015]
[1773003631450,0.00148,67230.0,67224.0,0.00015]
[1773003631648,0.00148,67231.0,67224.0,0.20381916]
[1773003632071,0.07436393,67237.0,67224.0,0.20381916]
[1773003632072,0.00148,67234.0,67224.0,0.20381916]
[1773003632470,0.07436393,67237.0,67224.0,0.20381916]
[1773003632759,0.00148,67236.0,67224.0,0.07941426]
[1773003632967,0.00148,67235.0,67224.0,0.07961426]
[1773003633379,0.03205417,67238.0,67224.0,0.07961426]
[1773003633580,0.07436492,67236.0,67225.0,0.07437709]
[1773003634797,0.03353417,67237.0,67225.0,0.07437709]
[1773003635000,0.00148,67236.0,67225.0,0.28451431]
[1773003637945,0.03375418,67249.0,67228.0,0.21013722]
[1773003638137,0.00148,67246.0,67231.0,0.0308314]
[1773003638342,0.00148,67246.0,67233.0,0.0308314]
[1773003638541,0.00178199,67247.0,67233.0,0.24244862]
[1773003639274,0.00030199,67247.0,67233.0,0.24244862]
[1773003639439,0.00178199,67247.0,67233.0,0.24244862]
[1773003639814,0.00178199,67247.0,67234.0,0.07436713]
[1773003640062,0.00178199,67247.0,67234.0,0.28450435]
[1773003640647,0.00178199,67247.0,67235.0,0.21013722]
[1773003642308,0.00178199,67247.0,67236.0,0.07436492]
[1773003642494,0.00148,67248.0,67236.0,0.07436492]
[1773003642670,0.03351298,67248.0,67236.0,0.07448391]
[1773003644208,0.07456952,67250.0,67236.0,0.07448391]
[1773003644209,0.00022001,67250.0,67236.0,0.07448391]
[1773003644413,0.00148,67248.0,67237.0,0.21013722]
[1773003644762,0.00022001,67250.0,67237.0,0.21013722]
[1773003644962,0.00148,67249.0,67237.0,0.21013722]
[1773003645793,0.03351298,67249.0,67237.0,0.21013722]
[1773003646586,0.00022001,67247.0,67238.0,0.07436271]
[1773003649049,0.00022001,67247.0,67236.0,0.00011899]
[1773003649831,0.03225299,67247.0,67236.0,0.00011899]
[1773003653106,0.07457343,67247.0,67236.0,0.00011899]
[1773003653311,0.03203298,67244.0,67234.0,0.07436713]
[1773003653528,0.00011203,67244.0,67234.0,0.07436713]
[1773003654956,0.00022001,67243.0,67234.0,0.07436713]
[1773003659742,0.00022001,67255.0,67234.0,0.07436713]
[1773003660004,0.00051965,67254.0,67234.0,0.07447916]
[1773003660175,0.00022001,67260.0,67235.0,0.21013722]
[1773003660575,0.03203298,67259.0,67235.0,0.21013722]
[1773003660748,0.03203298,67256.0,67236.0,0.00148]
[1773003660948,0.22270975,67253.0,67237.0,0.00148]
[1773003661298,0.13353405,67260.0,67234.0,0.07547916]
[1773003661299,0.05897547,67250.0,67234.0,0.07447916]
[1773003661477,0.03203298,67246.0,67235.0,0.00248]
[1773003661877,0.03203298,67246.0,67236.0,0.07436492]
[1773003663953,0.21782545,67245.0,67234.0,0.00031203]
[1773003664104,0.03203298,67242.0,67234.0,0.07436672]
[1773003668843,0.03203298,67242.0,67234.0,0.07456672]
[1773003669044,0.03225299,67242.0,67234.0,0.07456672]
[1773003673013,0.03225299,67242.0,67234.0,0.0002]
[1773003673393,0.03225299,67242.0,67232.0,0.07459832]
[1773003673394,0.07435939,67241.0,67232.0,0.07459832]
[1773003673575,0.21744811,67240.0,67230.0,0.07585156]
[1773003673913,0.07435939,67241.0,67230.0,0.07585156]
[1773003674122,0.07457896,67242.0,67231.0,0.07436976]
[1773003674871,0.0724206,67242.0,67231.0,0.07436976]
[1773003676118,0.0724206,67242.0,67234.0,0.0002]
[1773003676278,0.07264061,67242.0,67234.0,0.0002]
[1773003676479,0.00316438,67240.0,67230.0,0.0758512]
[1773003676907,0.07436049,67240.0,67230.0,0.0758512]
[1773003679853,0.07264061,67242.0,67230.0,0.0758512]
[1773003680065,0.07264061,67242.0,67231.0,0.03004882]
[1773003681909,0.07264061,67242.0,67232.0,0.07436934]
[1773003682556,0.00022001,67242.0,67232.0,0.07436934]
[1773003682768,0.00022001,67242.0,67233.0,0.03004882]
[1773003683877,0.07457921,67242.0,67232.0,0.10441816]
[1773003693511,0.07469814,67242.0,67232.0,0.10441816]
[1773003697993,0.07469814,67242.0,67231.0,0.07436934]
[1773003698147,0.00212315,67241.0,67231.0,0.07436934]
[1773003698764,0.07436028,67241.0,67229.0,0.07437263]
[1773003700134,0.07436028,67241.0,67230.0,0.03063883]
[1773003702081,0.07436028,67241.0,67231.0,0.07437045]
[1773003702747,0.07436028,67241.0,67231.0,0.10500928]
[1773003704507,0.07436028,67241.0,67224.0,0.00035]
[1773003704508,0.13333575,67241.0,67224.0,0.00035]
[1773003704711,0.00236631,67239.0,67224.0,0.07437727]
[1773003705059,0.00236631,67236.0,67224.0,0.07437727]
[1773003705263,0.21456279,67235.0,67224.0,0.07437727]
[1773003705614,0.21456279,67235.0,67223.0,0.07457868]
[1773003706023,0.21480239,67235.0,67223.0,0.07457868]
[1773003706977,0.07436713,67234.0,67223.0,0.0002]
[1773003707354,0.07436713,67234.0,67223.0,0.03083883]
[1773003707930,0.07460673,67234.0,67223.0,0.03083883]
[1773003710483,0.07460673,67234.0,67224.0,0.07437819]
[1773003714574,0.07460673,67234.0,67224.0,0.07457819]
[1773003714905,0.28726761,67234.0,67222.0,0.07437819]
[1773003715107,0.28726761,67234.0,67223.0,0.07437819]
[1773003715609,0.07676985,67234.0,67223.0,0.07437819]
[1773003715973,0.07676985,67234.0,67220.0,0.07458229]
[1773003716293,0.05897547,67230.0,67220.0,0.07458229]
[1773003716494,0.28726761,67234.0,67220.0,0.07458229]
[1773003717022,0.28726761,67234.0,67220.0,0.0002]
[1773003717827,0.28726761,67234.0,67220.0,0.03083883]
[1773003718935,0.28726761,67234.0,67221.0,0.07438151]
[1773003719545,0.07460673,67234.0,67221.0,0.07438151]
[1773003719749,0.27196054,67231.0,67220.0,0.07458151]
[1773003720130,0.27200541,67231.0,67217.0,0.0002]
[1773003720308,0.21299686,67230.0,67217.0,0.07458563]
[1773003720659,0.00148,67229.0,67217.0,0.0002]
[1773003721019,0.07437377,67228.0,67220.0,0.0002]
[1773003721430,0.07437377,67228.0,67217.0,0.0002]
[1773003721650,0.21321247,67227.0,67217.0,0.0002]
[1773003722026,0.21332527,67227.0,67217.0,0.0002]
[1773003723073,0.21332527,67227.0,67216.0,0.0002]
[1773003723074,0.07437598,67226.0,67216.0,0.0002]
[1773003723279,0.20937917,67223.0,67213.0,0.0002]
[1773003723428,0.21347913,67222.0,67213.0,1e-08]
[1773003724096,0.21085917,67222.0,67212.0,1e-08]
[1773003724295,0.20937917,67220.0,67212.0,1e-08]
[1773003724523,0.00148,67222.0,67210.0,1e-08]
[1773003724524,0.00259406,67219.0,67210.0,1e-08]
[1773003724695,0.21197323,67218.0,67209.0,1e-08]
[1773003725484,0.07438594,67217.0,67209.0,1e-08]
[1773003725705,0.00148,67216.0,67209.0,1e-08]
[1773003726472,0.00148,67216.0,67206.0,0.0002]
[1773003726681,0.20682175,67216.0,67206.0,0.0002]
[1773003727702,0.07438815,67215.0,67205.0,0.00047]
[1773003728006,0.07438815,67215.0,67205.0,0.07486915]
[1773003729143,0.07438815,67215.0,67209.0,0.0002]
[1773003743346,0.07434815,67215.0,67209.0,0.0002]
[1773003747094,0.00148,67214.0,67209.0,0.0002]
[1773003749291,0.07439037,67213.0,67209.0,0.0002]
[1773003750510,0.07439037,67213.0,67209.0,0.03024882]
[1773003761218,0.00022001,67222.0,67210.0,0.21049282]
[1773003761377,0.00148,67221.0,67213.0,0.21049282]
[1773003761562,0.07438017,67223.0,67214.0,0.21049282]
[1773003761770,0.07438017,67223.0,67210.0,6.483e-05]
[1773003761771,0.00022001,67229.0,67217.0,0.03004882]
[1773003761964,0.00022001,67229.0,67220.0,0.03004882]
[1773003762205,0.00148,67228.0,67220.0,0.03004882]
[1773003762617,0.00148,67227.0,67220.0,0.03004882]
[1773003763375,0.07585538,67227.0,67220.0,0.10443047]
[1773003765906,0.07607539,67227.0,67220.0,0.11443047]
[1773003766536,0.00148,67226.0,67220.0,0.11443047]
[1773003766821,0.00148,67226.0,67220.0,0.08438165]
[1773003767044,0.00148,67226.0,67221.0,0.03004882]
[1773003767240,0.00148,67226.0,67221.0,0.02996985]
[1773003767733,0.00022001,67227.0,67221.0,0.02996985]
[1773003768745,0.00022001,67227.0,67223.0,0.03000934]
[1773003771774,0.00022001,67227.0,67223.0,0.10438832]
[1773003771991,0.00022001,67227.0,67224.0,0.03000934]
[1773003772894,0.07436524,67236.0,67224.0,0.03000934]
[1773003773096,0.00193001,67232.0,67224.0,0.03000934]
[1773003773249,0.00045001,67232.0,67224.0,0.03000934]
[1773003773854,0.00045001,67232.0,67225.0,0.07437709]
[1773003774055,0.00045001,67232.0,67226.0,0.03000934]
[1773003775713,0.00193001,67232.0,67226.0,0.03000934]
[1773003775909,0.00045001,67232.0,67227.0,0.07437487]
[1773003776111,0.00045001,67232.0,67228.0,0.03000934]
[1773003777699,0.07436281,67238.0,67228.0,0.03000934]
[1773003777955,0.07436271,67239.0,67230.0,0.03000934]
[1773003778359,0.00148,67238.0,67230.0,0.03000934]
[1773003778756,0.00022001,67232.0,67230.0,0.03000934]
[1773003779671,0.00022001,67232.0,67229.0,0.07437266]
[1773003779947,0.00022001,67232.0,67230.0,0.03000934]
[1773003780200,0.00022001,67232.0,67230.0,0.10438029]
[1773003782079,0.00022001,67232.0,67230.0,0.07437095]
[1773003782308,0.00022001,67232.0,67231.0,0.03000934]
[1773003782906,0.07458272,67239.0,67231.0,0.03000934]
[1773003783227,0.17786686,67250.0,67230.0,0.07437095]
[1773003783228,0.00022001,67246.0,67235.0,0.03000934]
[1773003783543,0.00030263,67246.0,67237.0,0.03000934]
[1773003784112,0.00022001,67247.0,67239.0,0.19594175]
[1773003784327,0.00022001,67248.0,67242.0,0.03000934]
[1773003784946,0.07457196,67248.0,67242.0,0.03000934]
[1773003786024,0.07457196,67248.0,67239.0,0.07444421]
[1773003786232,0.00022001,67246.0,67239.0,0.07444421]
[1773003786639,0.00022001,67246.0,67239.0,0.10509198]
[1773003789292,0.00022001,67246.0,67239.0,0.07444421]
[1773003789507,0.00022001,67246.0,67240.0,0.03075319]
[1773003791746,0.00022001,67246.0,67241.0,0.07435939]
[1773003794836,0.00022001,67246.0,67241.0,0.10511258]
[1773003796030,0.00022001,67246.0,67241.0,0.07435939]
[1773003796231,0.00022001,67246.0,67242.0,0.03075319]
[1773003797257,0.00022001,67246.0,67243.0,0.10511037]
[1773003798100,0.00057261,67256.0,67243.0,0.07435718]
[1773003798251,0.00023,67280.0,67245.0,0.21464874]
[1773003798252,0.00555,67268.0,67245.0,0.21464874]
[1773003798422,0.00555,67268.0,67248.0,0.03075319]
[1773003798423,0.07433359,67265.0,67248.0,0.03075319]
[1773003798630,0.07433359,67265.0,67244.0,0.00148]
[1773003798631,0.0745546,67264.0,67250.0,0.03075319]
[1773003799262,0.00148,67263.0,67252.0,0.03075319]
[1773003799885,0.00148,67263.0,67252.0,0.03083519]
[1773003800218,0.07581537,67263.0,67252.0,0.03083519]
[1773003800529,0.00022001,67254.0,67252.0,0.03083519]
[1773003800721,0.00022001,67261.0,67252.0,0.03083519]
[1773003801556,0.07455772,67261.0,67246.0,0.0001456]
[1773003801716,0.19661386,67255.0,67239.0,8.262e-05]
[1773003801917,0.05899584,67250.0,67239.0,8.262e-05]
[1773003803496,0.07435054,67249.0,67239.0,8.262e-05]
[1773003803707,0.00148,67248.0,67239.0,8.262e-05]
[1773003803924,0.19661386,67246.0,67232.0,0.00023]
[1773003804165,0.05899584,67242.0,67232.0,0.00023]
[1773003804386,0.00148,67241.0,67232.0,0.00023]
[1773003805156,0.00011891,67246.0,67232.0,0.00023]
[1773003805157,0.00011891,67246.0,67235.0,0.03075319]
[1773003805328,0.00148,67240.0,67233.0,0.07436824]
[1773003805528,0.00148,67240.0,67232.0,0.00023]
[1773003805939,0.00148,67240.0,67232.0,0.07459876]
[1773003806081,0.00148,67240.0,67232.0,0.10535195]
[1773003808082,0.00148,67240.0,67233.0,0.03075319]
[1773003809338,0.00148,67240.0,67233.0,0.10512098]
[1773003810335,0.00148,67240.0,67233.0,0.03075319]
[1773003813318,0.00148,67240.0,67233.0,0.10512142]
[1773003813852,0.00148,67240.0,67233.0,0.10532142]
[1773003814273,0.00148,67240.0,67233.0,0.03095319]
[1773003814680,0.07584119,67240.0,67233.0,0.03095319]
[1773003814883,0.07584119,67240.0,67230.0,0.0004258]
[1773003815090,0.02834345,67239.0,67230.0,0.0004258]
[1773003815285,0.02834345,67239.0,67230.0,0.07479704]
[1773003815916,0.10270518,67239.0,67230.0,0.07479704]
[1773003816971,0.10270518,67239.0,67230.0,0.0004258]
[1773003817792,0.10270518,67239.0,67230.0,0.07479721]
[1773003818649,0.03028801,67238.0,67226.0,0.0002]
[1773003819021,0.03028801,67238.0,67226.0,0.07457551]
[1773003819619,0.03028801,67238.0,67226.0,0.10477447]
[1773003820708,0.07436381,67237.0,67226.0,0.10477447]
[1773003824513,0.07436381,67237.0,67226.0,0.10477449]
[1773003827587,0.07436381,67237.0,67226.0,0.10477479]
[1773003828762,0.00148,67236.0,67226.0,0.03039896]
[1773003829045,0.00148,67236.0,67226.0,0.0002]
[1773003829439,0.00148,67235.0,67226.0,0.07457574]
[1773003829592,0.07436713,67234.0,67226.0,0.0002]
[1773003839737,0.03028801,67233.0,67226.0,0.0002]
[1773003839949,0.05900797,67233.0,67220.0,0.00555]
[1773003840116,0.05900797,67230.0,67220.0,0.07993241]
[1773003840295,0.00148,67229.0,67220.0,0.07993241]
[1773003840947,0.03028801,67228.0,67220.0,0.07993241]
[1773003842519,0.00148,67229.0,67220.0,0.07993241]
[1773003842748,0.00148,67229.0,67220.0,0.11013137]
[1773003846099,0.07585266,67229.0,67220.0,0.11013137]
[1773003846295,0.07585266,67229.0,67220.0,0.07993241]
[1773003846526,0.00148,67229.0,67220.0,0.07993241]
[1773003850009,0.1916021,67224.0,67214.0,0.00555]
[1773003850206,0.1916021,67220.0,67206.0,0.0002]
[1773003850407,0.02969734,67215.0,67206.0,0.0002]
[1773003850607,0.03117734,67214.0,67206.0,0.0002]
[1773003851179,0.07439037,67213.0,67206.0,0.0002]
[1773003851758,0.10408771,67213.0,67206.0,0.0002]
[1773003852315,0.02969734,67212.0,67206.0,0.0002]
[1773003852580,0.02969734,67212.0,67202.0,0.0002]
[1773003853135,0.07439258,67211.0,67202.0,0.0002]
[1773003856047,0.10408992,67211.0,67202.0,0.0002]
[1773003857026,0.10408992,67211.0,67207.0,0.00015]
[1773003858003,0.07439258,67211.0,67207.0,0.00015]
[1773003859129,0.10408992,67211.0,67207.0,0.00015]
[1773003859650,0.10508992,67211.0,67207.0,0.00015]
[1773003859836,0.10408992,67211.0,67207.0,0.00015]
[1773003861961,0.10408992,67211.0,67207.0,0.00035]
[1773003862135,0.07439258,67211.0,67207.0,0.00035]
[1773003862486,0.07439258,67211.0,67202.0,0.0002]
[1773003862686,0.07439258,67211.0,67193.0,0.0002]
[1773003862687,0.02969734,67208.0,67186.0,0.02824468]
[1773003862825,0.02969734,67199.0,67184.0,0.07465208]
[1773003863028,0.05900797,67194.0,67184.0,0.00023]
[1773003863690,0.02969734,67193.0,67184.0,0.00023]
[1773003863884,0.00148,67192.0,67186.0,0.001]
[1773003864101,0.07441472,67191.0,67184.0,0.00023]
[1773003864466,0.07441472,67191.0,67179.0,0.00058176]
[1773003864467,0.02969734,67188.0,67179.0,0.00058176]
[1773003865800,0.05900797,67189.0,67179.0,0.00058176]
[1773003866373,0.07441805,67188.0,67179.0,0.00058176]
[1773003866619,0.02969734,67187.0,67179.0,0.00058176]
[1773003866778,0.00148,67186.0,67179.0,0.00058176]
[1773003867163,0.03117734,67186.0,67179.0,0.00058176]
[1773003867387,0.03117734,67186.0,67174.0,0.07443265]
[1773003868688,0.05900797,67184.0,67170.0,0.26160106]
[1773003868905,0.05900797,67180.0,67170.0,0.10268209]
[1773003869122,0.05900797,67180.0,67179.0,0.0102]
[1773003869435,0.00148,67180.0,67170.0,0.07443741]
[1773003869602,0.00148,67180.0,67172.0,0.0002]
[1773003870537,0.00144,67180.0,67172.0,0.0002]